bitfinex-derivatives/quotes_ETHF0:USTF0_20260204
["timestamp","ask_amount","ask_price","bid_price","bid_amount"]
[1770243277911,12.02472722,2113.3,2112.3,6.95210306]
[1770243278313,4.73039371,2113.1,2112.3,6.95210306]
[1770243278717,4.73039371,2112.7,2112.2,0.00594438]
[1770243278917,12.02472722,2113.0,2112.2,0.00594438]
[1770243279119,4.73039371,2112.6,2112.2,0.00594438]
[1770243279331,4.73039371,2112.9,2112.2,6.95804744]
[1770243279520,4.73039371,2112.7,2112.2,0.00594438]
[1770243279716,7.29433351,2112.5,2111.6,6.95210306]
[1770243280213,4.73039371,2112.4,2111.6,6.95210306]
[1770243280412,4.73039371,2112.6,2111.6,6.95210306]
[1770243280718,4.73643255,2112.6,2111.6,6.95747738]
[1770243280919,4.73039371,2112.5,2111.6,6.95747738]
[1770243281415,4.73039371,2112.4,2111.6,6.95747738]
[1770243281617,7.30037235,2112.6,2111.6,6.95747738]
[1770243281618,4.73039371,2112.5,2111.6,6.95747738]
[1770243282620,4.73039371,2112.4,2111.6,6.95747738]
[1770243283017,4.73039371,2112.3,2111.6,6.95747738]
[1770243283322,7.30037235,2112.6,2111.6,6.95747738]
[1770243283515,4.73039371,2112.3,2111.6,6.95747738]
[1770243283927,4.73039371,2112.1,2111.6,6.95747738]
[1770243284121,4.73039371,2112.3,2111.6,6.95747738]
[1770243284525,4.73039371,2112.1,2111.6,6.95747738]
[1770243284827,7.30037235,2112.6,2111.6,6.95747738]
[1770243284828,4.73039371,2112.3,2111.6,6.95747738]
[1770243285324,4.73039371,2112.1,2111.6,0.00537432]
[1770243285628,4.73039371,2111.9,2111.4,0.0008]
[1770243285827,4.73039371,2111.8,2111.4,0.0008]
[1770243286229,7.29433351,2112.1,2111.4,0.0008]
[1770243286528,7.53160351,2112.4,2111.4,6.95636158]
[1770243286726,12.26199722,2112.4,2111.4,6.95636158]
[1770243286929,4.73039371,2112.2,2111.4,6.95636158]
[1770243287429,4.73039371,2112.1,2111.4,6.95636158]
[1770243287628,4.73039371,2112.3,2111.4,6.95636158]
[1770243287828,7.53160351,2112.4,2111.4,6.95636158]
[1770243288028,4.73039371,2112.3,2111.4,6.95636158]
[1770243288230,0.00603884,2112.6,2111.4,7.19372158]
[1770243288732,0.474,2112.9,2111.9,7.18942306]
[1770243289822,0.47771304,2112.9,2112.1,6.95210306]
[1770243290429,7.29433351,2113.6,2112.3,6.95210306]
[1770243290731,7.29433351,2113.6,2112.5,6.95210306]
[1770243291129,0.474,2113.7,2112.7,6.95210306]
[1770243291435,7.29433351,2114.5,2113.1,6.95210306]
[1770243291636,12.02472722,2114.5,2113.3,6.95210306]
[1770243291833,0.474,2114.6,2113.3,7.18926306]
[1770243292135,0.474,2114.6,2113.6,6.95210306]
[1770243292330,7.29433351,2115.1,2113.8,6.95210306]
[1770243292635,7.29433351,2115.1,2114.0,6.95210306]
[1770243292936,4.73039371,2115.0,2114.0,6.95210306]
[1770243293129,7.29433351,2115.4,2114.0,6.95210306]
[1770243293335,12.02472722,2115.4,2114.0,6.95210306]
[1770243293634,0.00337963,2115.4,2114.2,6.95210306]
[1770243293836,0.00337963,2115.4,2114.4,6.95210306]
[1770243294131,4.73377334,2115.4,2114.4,6.95210306]
[1770243294333,7.77164501,2116.3,2114.6,7.62842886]
[1770243294534,7.29764501,2116.2,2114.6,7.62842886]
[1770243294736,4.73039371,2115.5,2114.6,7.39142886]
[1770243294936,4.73039371,2114.7,2114.0,7.39142886]
[1770243295233,7.29764501,2115.3,2114.0,7.39142886]
[1770243295538,0.00565582,2114.7,2114.0,7.39142886]
[1770243295939,4.73039371,2114.5,2114.0,7.39142886]
[1770243296235,0.00565582,2114.7,2113.1,7.39142886]
[1770243296236,4.72431792,2113.7,2113.1,7.39142886]
[1770243296446,12.02196293,2114.1,2113.1,7.39142886]
[1770243296633,4.72431792,2114.0,2113.1,7.39142886]
[1770243296831,7.29764501,2114.2,2113.1,7.39142886]
[1770243297137,5.19831792,2114.4,2113.1,7.62860886]
[1770243297438,0.00565582,2114.7,2113.5,7.39142886]
[1770243297633,7.29764501,2115.9,2114.5,7.39142886]
[1770243297840,3.33160825,2115.9,2114.5,3.32783362]
[1770243298032,3.33160825,2115.9,2114.5,3.1885121]
[1770243298033,4.72431792,2115.4,2114.5,3.1885121]
[1770243298239,7.29764501,2115.6,2114.5,2.52778942]
[1770243298632,7.30158333,2115.6,2113.5,0.23714]
[1770243298838,1.08983,2115.5,2113.6,7.39142886]
[1770243299233,0.23694,2115.3,2113.6,7.39142886]
[1770243299739,0.17308177,2115.3,2113.6,7.39142886]
[1770243300035,0.00393832,2115.6,2113.8,7.90324139]
[1770243300230,0.24084832,2115.6,2113.8,7.90324139]
[1770243300439,0.00393832,2115.6,2113.8,7.90324139]
[1770243300638,0.23694,2115.3,2113.8,7.66614139]
[1770243300939,7.41833693,2114.8,2113.5,7.66614139]
[1770243301137,0.474,2114.7,2113.5,7.66614139]
[1770243301333,0.474,2114.7,2113.5,7.90328139]
[1770243301834,7.89233693,2114.7,2113.5,7.66614139]
[1770243302036,7.89233693,2114.7,2113.1,7.67000024]
[1770243302539,7.89233693,2114.7,2113.3,7.90330139]
[1770243302731,7.89233693,2114.7,2113.1,0.00385885]
[1770243302732,0.474,2114.7,2113.5,7.66614139]
[1770243302933,7.89233693,2114.7,2113.5,7.66614139]
[1770243303131,0.474,2114.7,2113.5,7.66614139]
[1770243303436,7.89233693,2114.7,2113.5,7.66614139]
[1770243303740,8.12934693,2114.7,2113.5,7.66614139]
[1770243303935,0.71101,2114.7,2113.5,7.66614139]
[1770243304142,0.474,2114.7,2113.5,7.66614139]
[1770243304635,7.89233693,2114.7,2113.5,7.66614139]
[1770243306031,0.23702,2114.6,2113.5,7.66614139]
[1770243306231,7.89233693,2114.7,2113.5,7.66614139]
[1770243306435,0.474,2114.7,2113.5,7.66614139]
[1770243307036,7.89233693,2114.7,2113.5,7.66614139]
[1770243308936,7.89233693,2114.7,2113.1,0.00385885]
[1770243308937,7.89233693,2114.7,2113.2,7.66614139]
[1770243309139,7.41833693,2114.4,2113.2,7.66614139]
[1770243309534,0.474,2114.7,2113.2,7.90331139]
[1770243309535,7.89233693,2114.7,2113.2,7.90331139]
[1770243310140,0.474,2114.7,2113.4,7.66614139]
[1770243310640,7.89233693,2114.7,2113.4,7.66614139]
[1770243310943,0.474,2114.7,2113.7,7.66614139]
[1770243311144,7.41833693,2115.4,2113.9,7.90323139]
[1770243311343,7.41833693,2115.4,2114.1,7.66614139]
[1770243311538,0.473,2115.5,2114.1,7.90321139]
[1770243311735,7.89133693,2115.5,2114.1,7.90321139]
[1770243311939,0.00393832,2115.6,2114.4,1.0904]
[1770243312141,7.41833693,2116.1,2114.9,7.90312139]
[1770243312343,7.65518693,2116.1,2114.6,7.66614139]
[1770243312746,7.41833693,2116.1,2114.6,7.66614139]
[1770243312944,0.473,2116.3,2114.9,7.66614139]
[1770243313239,0.473,2116.3,2115.1,7.66614139]
[1770243313445,0.47751434,2116.3,2115.1,7.67094135]
[1770243314040,0.00451434,2116.3,2115.3,7.66614139]
[1770243314240,2.90242552,2117.2,2115.5,7.66614139]
[1770243314241,7.41833693,2117.0,2115.5,7.66614139]
[1770243314847,7.41833693,2116.7,2115.2,7.66614139]
[1770243315246,7.41833693,2116.5,2115.2,7.66614139]
[1770243316049,0.00450831,2116.7,2115.2,7.90308139]
[1770243316250,7.65963524,2116.7,2115.2,7.66614139]
[1770243316449,7.65963524,2116.7,2115.1,0.00479996]
[1770243316450,7.41833693,2116.4,2115.1,0.00479996]
[1770243316748,7.42284524,2116.7,2115.5,7.66614139]
[1770243316952,3.35925,2116.7,2115.5,7.66614139]
[1770243317550,3.21992848,2116.7,2115.5,7.66614139]
[1770243317948,0.473,2117.0,2115.5,7.90642894]
[1770243318255,7.89133693,2117.0,2115.6,1.08977]
[1770243318450,7.41833693,2117.8,2116.0,1.08957]
[1770243318750,7.41833693,2117.8,2115.5,10.17575532]
[1770243318751,7.41833693,2117.2,2115.5,0.00337755]
[1770243319043,7.65953375,2117.2,2115.5,0.00337755]
[1770243319343,3.21988699,2117.2,2116.0,7.66614139]
[1770243319541,0.23668,2117.6,2116.0,7.66614139]
[1770243319746,7.41833693,2117.6,2116.0,3.46322463]
[1770243320045,7.41833693,2117.4,2116.0,3.46322463]
[1770243320343,0.00518788,2117.4,2116.0,3.46322463]
[1770243320544,0.00518788,2117.4,2116.1,0.23684]
[1770243320744,7.41833693,2117.3,2115.7,2.80590313]
[1770243321349,7.41833693,2117.3,2115.7,0.23689]
[1770243321540,7.41833693,2117.3,2115.8,0.23688]
[1770243321741,1.08895,2117.2,2115.6,10.47204452]
[1770243322049,0.473,2117.1,2115.6,7.66614139]
[1770243322347,0.00518788,2117.4,2116.0,7.66614139]
[1770243322545,0.00518788,2117.4,2116.2,7.66614139]
[1770243322953,0.17798965,2117.8,2116.2,7.66614139]
[1770243323453,0.473,2117.9,2116.2,7.66614139]
[1770243323750,7.2996021,2117.8,2116.4,7.66614139]
[1770243323946,0.00582924,2117.8,2116.4,7.90295139]
[1770243324144,7.7726021,2118.2,2116.8,7.52934144]
[1770243324849,7.2996021,2118.0,2116.8,7.52934144]
[1770243325351,7.2996021,2117.8,2116.5,7.52934144]
[1770243326852,7.2996021,2116.9,2115.6,7.52934144]
[1770243327150,7.2996021,2117.5,2116.3,7.52934144]
[1770243327451,0.473,2117.9,2116.8,7.52934144]
[1770243327643,0.473,2117.9,2116.1,1.08951]
[1770243327644,7.7726021,2117.9,2116.2,7.52934144]
[1770243327844,0.00354428,2118.0,2116.7,1.0892]
[1770243328044,7.30314638,2118.0,2116.7,7.52934144]
[1770243328250,0.00354428,2118.0,2117.2,7.52934144]
[1770243328456,7.2996021,2119.0,2117.5,7.52934144]
[1770243329150,0.473,2119.1,2117.7,7.52934144]
[1770243329446,0.47829995,2119.1,2117.9,7.39001992]
[1770243329646,7.77790205,2119.1,2117.9,3.32642468]
[1770243329846,0.47829995,2119.1,2117.9,3.32642468]
[1770243330250,7.3228218,2119.9,2118.3,0.2366]
[1770243330450,7.5592418,2119.9,2117.8,0.23665]
[1770243330650,7.5592418,2119.9,2117.9,1.08859]
[1770243330855,7.5592418,2119.9,2118.1,0.23662]
[1770243331354,7.5592418,2119.9,2117.6,1.56174]
[1770243331355,7.5360521,2119.7,2117.8,0.23665]
[1770243331551,7.5361021,2119.2,2117.9,7.52934144]
[1770243331755,7.2996021,2119.2,2117.9,7.52934144]
[1770243333456,7.2996021,2118.9,2117.6,7.52934144]
[1770243335251,7.5361121,2118.9,2117.3,7.52934144]
[1770243335655,7.2996021,2118.7,2117.3,7.52934144]
[1770243335957,7.2996021,2118.5,2117.3,7.52934144]
[1770243336353,7.2996021,2119.2,2117.8,7.52934144]
[1770243337059,7.2996021,2119.2,2117.8,7.76597144]
[1770243337452,7.2996021,2119.2,2118.0,7.52934144]
[1770243337756,7.5360821,2119.2,2117.5,7.52934144]
[1770243337956,7.5361021,2119.0,2117.5,7.52934144]
[1770243338455,8.0091021,2119.0,2117.5,7.52934144]
[1770243339558,7.7726021,2119.0,2117.7,7.52934144]
[1770243340062,7.2996021,2118.4,2117.3,7.52934144]
[1770243340362,7.30327312,2118.4,2117.3,7.52934144]
[1770243340855,7.5361921,2118.2,2117.3,7.52934144]
[1770243341059,7.5361921,2118.2,2117.2,0.00421045]
[1770243341060,7.2996021,2117.9,2117.2,0.00421045]
[1770243341257,7.2996021,2117.5,2116.2,7.52934144]
[1770243341557,8.0092221,2118.0,2116.4,7.52934144]
[1770243341753,7.2996021,2117.6,2116.4,7.52934144]
[1770243341953,7.2996021,2117.6,2116.4,7.76613144]
[1770243342157,7.2996021,2118.2,2117.0,0.23672]
[1770243342357,0.00367102,2118.4,2117.3,7.52934144]
[1770243343555,0.00367102,2118.4,2117.5,7.52934144]
[1770243343759,0.00367102,2118.4,2117.5,7.76600144]
[1770243345853,0.473,2118.6,2117.7,7.52934144]
[1770243346660,0.473,2118.6,2117.7,7.76598144]
[1770243346863,0.47838465,2118.6,2117.9,7.52934144]
[1770243347055,7.2996021,2119.2,2117.9,7.53415238]
[1770243347360,7.2996021,2119.7,2118.6,7.52934144]
[1770243347557,0.0232197,2119.9,2119.0,7.52934144]
[1770243347764,7.2996021,2120.4,2119.0,7.52934144]
[1770243348163,7.30506823,2120.4,2119.0,7.52934144]
[1770243348462,7.30506823,2120.4,2118.6,7.52934144]
[1770243348463,7.2996021,2120.1,2118.6,7.52934144]
[1770243348661,0.23637,2120.2,2118.6,7.52934144]
[1770243348662,7.2996021,2119.9,2119.1,0.0112]
[1770243348961,0.00546613,2120.4,2119.4,7.52934144]
[1770243349263,7.2996021,2121.1,2119.4,7.53505217]
[1770243349461,7.2996021,2121.1,2119.5,7.52934144]
[1770243349653,7.2996021,2121.1,2119.7,7.52934144]
[1770243349856,7.2996021,2122.5,2121.1,7.52934144]
[1770243350253,7.30561253,2122.5,2121.1,7.53445651]
[1770243350461,0.00601043,2122.5,2121.1,3.33153975]
[1770243350663,0.00601043,2122.5,2121.3,1.08673]
[1770243350960,7.7716021,2123.3,2121.7,1.08651]
[1770243351161,7.7716021,2123.3,2121.5,2.79036664]
[1770243351467,7.7716021,2123.3,2121.4,4.11328664]
[1770243351758,7.77559839,2123.3,2121.6,1.08659]
[1770243351964,7.2996021,2123.1,2121.2,0.472]
[1770243352165,7.2996021,2122.9,2121.2,0.472]
[1770243352565,7.2996021,2122.5,2121.1,7.53445651]
[1770243352861,7.2996021,2122.5,2121.1,0.00511507]
[1770243353067,7.2996021,2122.3,2121.1,0.00511507]
[1770243353264,7.2996021,2122.1,2121.1,0.00511507]
[1770243353463,7.2996021,2122.1,2120.4,8.00134144]
[1770243354368,7.2996021,2122.1,2120.4,8.00603577]
[1770243354569,7.2996021,2122.1,2120.7,8.25008562]
[1770243354765,8.07680483,2122.4,2120.9,7.16304562]
[1770243355174,8.07680483,2122.4,2120.9,6.92675562]
[1770243357367,7.84095483,2122.2,2120.4,0.47669433]
[1770243357568,7.84095483,2122.2,2120.4,7.40344995]
[1770243357769,8.07680483,2122.4,2120.9,0.23628]
[1770243357964,0.472,2123.2,2121.9,6.92675562]
[1770243358174,7.60480483,2123.8,2122.3,7.16288562]
[1770243358569,7.60480483,2123.8,2122.3,6.92675562]
[1770243358866,7.84079483,2123.6,2122.3,6.92675562]
[1770243359072,1.08568,2123.4,2121.9,0.00354388]
[1770243359268,0.00458451,2123.4,2122.0,0.23616]
[1770243359473,0.00458451,2123.4,2122.1,3.35186012]
[1770243359770,0.00458451,2123.4,2122.3,0.23613]
[1770243360464,0.00458451,2123.4,2122.2,1.08625]
[1770243360668,7.61542978,2124.0,2122.5,0.23611]
[1770243360868,7.61542978,2124.0,2121.9,0.23971388]
[1770243361176,7.61542978,2124.0,2122.2,1.08628]
[1770243361373,0.472,2124.0,2122.5,1.08613]
[1770243361574,0.00387271,2124.0,2122.8,7.55477688]
[1770243361977,0.00387271,2124.0,2123.0,7.79082688]
[1770243362176,12.008,2124.6,2123.2,7.55477688]
[1770243362476,7.61542978,2124.8,2123.2,7.55477688]
[1770243362868,0.23587,2124.7,2122.8,7.55477688]
[1770243363074,7.37930978,2124.6,2122.8,7.55477688]
[1770243363681,7.14342978,2124.4,2122.8,7.55477688]
[1770243364375,8.22889978,2123.8,2122.4,7.55477688]
[1770243364580,8.22889978,2123.8,2121.9,0.47554388]
[1770243364581,7.14342978,2123.4,2121.9,7.55832076]
[1770243364779,7.37948978,2123.0,2121.9,0.00354388]
[1770243364971,7.14875856,2123.0,2121.9,0.00354388]
[1770243365372,7.14875856,2123.0,2121.9,7.55832076]
[1770243365868,0.00532878,2123.0,2122.1,7.79092688]
[1770243366278,0.472,2123.8,2121.9,0.00354388]
[1770243366279,0.472,2124.6,2122.8,7.79084688]
[1770243366479,0.472,2124.6,2123.2,7.55477688]
[1770243366480,7.61542978,2124.6,2123.2,7.55477688]
[1770243366674,7.61542978,2124.6,2123.2,7.79080688]
[1770243366875,7.61542978,2124.6,2123.2,7.55477688]
[1770243367081,7.14342978,2124.3,2122.8,7.55477688]
[1770243367278,7.14342978,2123.9,2122.4,7.55477688]
[1770243367474,8.22909978,2123.4,2121.9,0.00354388]
[1770243367677,7.14342978,2122.9,2121.9,0.00354388]
[1770243367982,7.14342978,2122.5,2121.0,7.55477688]
[1770243368278,7.14342978,2122.9,2121.5,7.79099688]
[1770243368479,7.14342978,2123.3,2121.9,7.55477688]
[1770243368679,7.14342978,2123.7,2122.3,7.55477688]
[1770243368886,7.14690775,2123.7,2122.3,7.79683203]
[1770243369186,7.37942978,2123.5,2122.3,0.00593515]
[1770243370378,7.14342978,2123.3,2122.3,0.00593515]
[1770243370687,7.14342978,2122.7,2121.5,7.55477688]
[1770243371683,7.14342978,2122.7,2121.5,7.5603586]
[1770243372074,7.14342978,2123.1,2121.5,7.5603586]
[1770243372282,7.14342978,2123.1,2121.5,7.7965786]
[1770243372482,7.14342978,2123.3,2121.7,7.55477688]
[1770243372679,7.37947978,2123.1,2121.7,7.55477688]
[1770243373080,7.14342978,2122.9,2121.5,0.00558172]
[1770243373276,7.14342978,2123.4,2121.7,7.55477688]
[1770243373483,0.00347797,2123.7,2122.9,7.79083688]
[1770243373686,7.14342978,2124.1,2123.1,0.23604]
[1770243373881,7.14342978,2124.6,2123.4,7.55477688]
[1770243374089,7.14342978,2125.0,2123.6,7.55477688]
[1770243374285,7.14342978,2125.0,2123.3,7.79078688]
[1770243374583,7.14342978,2125.0,2123.7,7.79075688]
[1770243374886,7.14680912,2125.0,2123.7,7.79614514]
[1770243375086,7.14680912,2125.0,2123.7,0.00538826]
[1770243375981,7.38264912,2125.0,2123.7,0.00538826]
[1770243376287,7.14342978,2124.7,2123.7,0.00538826]
[1770243376488,7.14342978,2124.5,2123.7,0.00538826]
[1770243378083,0.00337934,2124.9,2123.9,7.55477688]
[1770243378286,7.14342978,2124.9,2123.7,0.00538826]
[1770243378484,7.14342978,2124.9,2123.7,7.56016514]
[1770243378680,7.14342978,2125.5,2124.4,7.55477688]
[1770243378987,0.00412829,2125.5,2124.6,7.79065688]
[1770243379186,8.22725978,2127.0,2124.8,7.79062688]
[1770243379485,8.22725978,2127.0,2124.4,1.08512]
[1770243379486,7.14342978,2126.3,2124.5,7.55477688]
[1770243379691,7.14342978,2126.1,2124.5,7.55477688]
[1770243380088,0.00337934,2126.0,2124.4,7.55477688]
[1770243380388,7.14342978,2125.7,2124.4,4.29316012]
[1770243380788,7.14342978,2125.5,2124.4,4.29316012]
[1770243381191,7.14342978,2125.9,2124.4,4.29316012]
[1770243381392,7.14342978,2125.4,2123.9,2.76242323]
[1770243381591,7.14342978,2125.4,2123.8,2.76242323]
[1770243381887,7.14680912,2125.2,2124.0,0.9388]
[1770243382093,7.14342978,2125.2,2124.0,0.9388]
[1770243382291,7.14342978,2125.2,2124.0,8.72951688]
[1770243382492,0.471,2125.3,2124.0,8.72951688]
[1770243382693,0.471,2125.3,2124.2,7.55477688]
[1770243383695,0.00337934,2125.2,2124.2,7.55477688]
[1770243383895,7.61442978,2125.3,2124.2,7.55477688]
[1770243384293,7.13449992,2125.7,2124.5,7.21864198]
[1770243384492,7.13787926,2125.7,2124.2,7.21864198]
[1770243384695,7.13449992,2125.5,2124.2,7.21864198]
[1770243384889,7.13787926,2125.5,2124.2,7.21864198]
[1770243385097,7.13449992,2125.5,2124.4,7.21864198]
[1770243385391,7.13787926,2125.5,2124.1,2.76242323]
[1770243385593,11.993,2126.0,2124.0,8.15744198]
[1770243385594,7.13787926,2125.2,2124.0,8.15744198]
[1770243385789,0.471,2125.4,2124.0,0.9388]
[1770243385790,7.13449992,2125.0,2124.0,0.9388]
[1770243385988,7.13449992,2124.8,2124.0,0.9388]
[1770243386196,7.60549992,2125.4,2124.0,8.15744198]
[1770243386389,7.13787926,2125.3,2124.1,7.45457198]
[1770243386589,7.13449992,2124.9,2124.0,0.9388]
[1770243386994,7.13449992,2124.6,2124.0,0.9388]
[1770243387195,7.13449992,2124.4,2123.7,0.00538826]
[1770243387493,0.00356701,2124.6,2123.7,0.00538826]
[1770243387895,0.00356701,2124.6,2123.7,7.46001024]
[1770243388599,0.00356701,2124.6,2123.8,7.45460198]
[1770243389002,0.00356701,2124.6,2123.9,7.45459198]
[1770243389297,7.60549992,2125.4,2124.2,7.45456198]
[1770243389801,7.60887926,2125.4,2124.2,7.45456198]
[1770243389995,0.471,2125.4,2124.5,0.23589]
[1770243390190,0.47435718,2125.4,2124.5,7.45453198]
[1770243390403,0.47435718,2125.4,2124.6,7.45452198]
[1770243390696,7.13449992,2126.0,2124.8,7.45449198]
[1770243390892,1.08369,2127.3,2124.8,7.45449198]
[1770243390893,0.23566,2126.6,2125.2,7.21864198]
[1770243391200,0.471,2126.7,2125.7,7.45439198]
[1770243391399,0.471,2126.7,2125.7,7.21864198]
[1770243391598,0.4765767,2126.7,2125.7,7.22204058]
[1770243391800,0.00337934,2126.1,2125.7,0.0033986]
[1770243392001,0.17518111,2126.6,2125.7,0.0033986]
[1770243392301,0.23567,2126.5,2124.9,7.68964198]
[1770243392501,0.4765767,2126.7,2125.0,7.45447198]
[1770243392896,7.13449992,2126.5,2125.0,7.45447198]
[1770243393093,0.23572,2126.1,2125.0,0.00329604]
[1770243393296,7.13449992,2125.7,2124.3,2.76242323]
[1770243393499,7.13449992,2125.6,2124.5,7.21864198]
[1770243393699,7.13449992,2125.6,2124.6,7.21864198]
[1770243393902,7.13449992,2125.6,2124.2,10.45206521]
[1770243394099,7.13449992,2125.6,2124.3,7.45455198]
[1770243394295,7.13449992,2125.6,2124.4,7.45454198]
[1770243394501,0.471,2125.7,2124.5,7.45453198]
[1770243394998,7.60549992,2125.7,2124.5,7.21864198]
[1770243395504,7.84125992,2125.7,2124.3,0.00413183]
[1770243396398,7.13449992,2125.2,2124.3,0.00413183]
[1770243396603,7.13878838,2125.2,2124.3,0.00413183]
[1770243396802,0.00428846,2125.2,2124.3,7.22277381]
[1770243397204,0.00428846,2125.2,2124.4,7.45454198]
[1770243397496,7.60549992,2125.7,2124.6,7.45451198]
[1770243397700,7.60549992,2125.7,2124.6,7.21864198]
[1770243398098,0.471,2125.7,2124.6,7.45451198]
[1770243398301,0.47499959,2125.7,2124.6,7.45451198]
[1770243399104,0.47499959,2125.7,2124.6,10.21693521]
[1770243399299,0.47499959,2125.7,2124.6,7.45451198]
[1770243399501,0.47499959,2125.7,2124.6,7.21864198]
[1770243399903,7.60949951,2125.7,2124.4,2.76242323]
[1770243400103,7.13449992,2125.5,2124.3,0.00413183]
[1770243400604,7.13449992,2125.5,2124.4,7.21864198]
[1770243401104,7.60949951,2125.7,2124.6,7.21864198]
[1770243401606,7.60949951,2125.7,2124.4,2.76242323]
[1770243401808,7.60949951,2125.7,2124.3,0.00413183]
[1770243401809,7.13449992,2125.1,2124.3,0.00413183]
[1770243402406,7.13449992,2125.6,2124.3,0.00413183]
[1770243402607,7.13449992,2125.6,2124.4,4.97584988]
[1770243402901,0.47499959,2125.7,2124.6,7.45452198]
[1770243403101,0.47499959,2125.7,2124.8,2.76242323]
[1770243403301,7.60949951,2125.7,2124.7,2.76242323]
[1770243403504,7.60949951,2125.7,2124.8,4.98946164]
[1770243403700,7.60949951,2125.7,2124.7,2.76242323]
[1770243403701,7.13449992,2125.5,2124.6,2.76242323]
[1770243403901,7.13449992,2125.3,2124.3,0.00413183]
[1770243404101,0.47499959,2125.7,2124.1,5.66511633]
[1770243404102,7.13449992,2125.0,2124.1,4.24883724]
[1770243404302,7.13449992,2125.0,2123.9,4.24883724]
[1770243404504,7.13449992,2125.0,2124.0,7.21864198]
[1770243404897,7.13449992,2125.0,2123.8,4.48479724]
[1770243405102,7.37029992,2125.3,2124.0,7.21864198]
[1770243405308,7.37031992,2125.1,2123.9,7.21864198]
[1770243405607,7.13449992,2125.1,2124.0,11.46747922]
[1770243405807,7.13449992,2125.1,2124.1,9.98106521]
[1770243406206,7.13449992,2125.1,2124.2,2.76242323]
[1770243406407,7.13449992,2125.4,2124.2,9.98106521]
[1770243406707,7.13449992,2125.4,2124.2,7.21864198]
[1770243407106,7.37028992,2125.4,2124.2,7.21864198]
[1770243407301,7.37030992,2125.2,2123.9,11.70342922]
[1770243407505,7.13449992,2124.9,2123.9,11.46747922]
[1770243407804,7.37036992,2124.7,2123.8,0.00559223]
[1770243409105,7.37038992,2124.5,2123.8,0.00559223]
[1770243409301,7.37038992,2124.5,2123.3,11.46747922]
[1770243410106,7.13449992,2124.3,2123.3,7.21864198]
[1770243410315,7.13449992,2124.3,2123.3,7.22269283]
[1770243411013,7.37035992,2124.8,2123.4,7.21864198]
[1770243411308,0.471,2125.0,2123.7,7.21864198]
[1770243411809,7.60549992,2125.0,2123.8,7.21864198]
[1770243412010,7.60549992,2125.0,2124.0,7.21864198]
[1770243412508,7.60549992,2125.0,2124.2,2.76242323]
[1770243412708,7.60549992,2125.0,2124.0,9.98106521]
[1770243413309,7.37035992,2124.8,2124.0,2.76242323]
[1770243413508,0.471,2125.0,2124.0,9.98106521]
[1770243413709,0.471,2125.0,2124.2,2.76242323]
[1770243414208,0.471,2125.0,2124.3,2.76242323]
[1770243414509,0.471,2125.0,2124.2,2.76242323]
[1770243414909,0.471,2125.0,2124.3,2.76242323]
[1770243415110,0.471,2125.0,2124.4,2.76242323]
[1770243415312,0.471,2125.0,2124.2,7.36765289]
[1770243415512,0.471,2125.0,2124.2,10.13007612]
[1770243415714,8.05586124,2125.0,2123.9,7.36765289]
[1770243415913,8.05586124,2125.0,2123.9,10.13007612]
[1770243416313,8.05586124,2125.0,2123.9,7.36765289]
[1770243417008,8.05586124,2125.0,2124.0,10.13007612]
[1770243417311,0.471,2125.0,2124.1,10.13007612]
[1770243417814,0.471,2125.0,2124.3,2.76242323]
[1770243418314,0.471,2125.0,2124.4,2.76242323]
[1770243418514,0.471,2125.0,2124.3,2.76242323]
[1770243418812,0.471,2125.0,2124.1,7.36765289]
[1770243419011,7.2827673,2124.9,2123.8,11.61649013]
[1770243419218,7.2827673,2124.9,2123.8,7.36765289]
[1770243420318,7.0469173,2124.7,2123.6,4.24883724]
[1770243420518,7.0469173,2124.7,2123.7,12.39234738]
[1770243420713,7.0469173,2124.7,2123.7,10.35577617]
[1770243420916,7.0469173,2124.7,2123.9,2.76242323]
[1770243421316,0.23586,2124.8,2123.8,7.59335294]
[1770243421518,0.471,2125.0,2124.1,2.76242323]
[1770243421717,7.7537473,2125.0,2123.7,11.84219018]
[1770243421917,7.7537473,2125.0,2123.8,7.59335294]
[1770243422521,7.7537473,2125.0,2123.8,10.35577617]
[1770243422720,7.7537473,2125.0,2124.0,7.59335294]
[1770243423423,7.7537473,2125.0,2124.0,10.35577617]
[1770243423611,7.7537473,2125.0,2124.0,7.59335294]
[1770243424416,7.7537473,2125.0,2124.1,2.76242323]
[1770243424621,7.7537473,2125.0,2124.1,10.35577617]
[1770243424918,7.7537473,2125.0,2124.2,2.76242323]
[1770243425323,0.23586,2124.8,2123.8,7.59335294]
[1770243425520,7.2826973,2125.5,2124.2,7.59335294]
[1770243425723,0.70673,2125.9,2124.6,7.59335294]
[1770243425922,0.70673,2125.9,2124.8,7.59335294]
[1770243425923,0.471,2125.9,2124.8,7.59335294]
[1770243426124,7.7535973,2126.4,2125.2,10.35577617]
[1770243426319,7.7535973,2126.4,2125.3,7.59335294]
[1770243426823,7.7535973,2126.4,2125.4,2.76242323]
[1770243427025,7.75954386,2126.4,2125.4,10.36037528]
[1770243427225,7.75954386,2126.4,2125.6,2.76242323]
[1770243427620,7.75954386,2126.4,2125.5,7.59335294]
[1770243428025,7.75954386,2126.4,2125.4,0.00459911]
[1770243428526,0.23563,2126.9,2126.1,2.76242323]
[1770243428718,7.0469173,2128.5,2126.9,2.76242323]
[1770243428924,8.3654373,2128.5,2126.7,4.24883724]
[1770243429122,7.2823673,2128.5,2127.0,3.70192323]
[1770243429519,7.0469173,2128.3,2127.0,0.94413105]
[1770243429720,8.1304073,2127.7,2127.0,0.28087105]
[1770243429925,7.2824773,2127.5,2125.9,4.24883724]
[1770243430226,7.0469173,2128.1,2126.1,0.2357]
[1770243430421,7.0469173,2128.1,2126.2,10.99705091]
[1770243430627,7.5179173,2128.4,2127.0,2.76242323]
[1770243430827,7.5179173,2128.4,2127.0,0.00363952]
[1770243431028,7.5179173,2128.4,2127.3,10.35577617]
[1770243431232,7.5179173,2128.4,2127.3,7.59335294]
[1770243431426,7.0469173,2128.2,2127.0,0.00363952]
[1770243431924,7.0469173,2128.2,2127.1,7.59335294]
[1770243432122,0.00438102,2128.5,2127.6,7.59335294]
[1770243432327,0.00438102,2128.5,2127.7,7.59335294]
[1770243432523,0.00438102,2128.5,2128.0,7.59335294]
[1770243432728,7.5179173,2129.1,2127.7,7.59335294]
[1770243432925,7.2823673,2128.5,2127.1,7.59335294]
[1770243433130,7.2823673,2128.5,2127.2,7.59335294]
[1770243433326,7.0469173,2129.0,2127.9,2.62310171]
[1770243433531,7.05293791,2129.0,2127.8,7.59335294]
[1770243433727,8.1298573,2128.8,2127.4,7.59335294]
[1770243434032,7.2823573,2128.6,2127.4,7.59335294]
[1770243434329,0.0878129,2129.0,2127.0,0.00363952]
[1770243434330,0.00602061,2129.0,2128.1,10.21645465]
[1770243434529,0.00602061,2129.0,2128.1,7.59335294]
[1770243434728,0.00602061,2129.0,2128.4,2.62310171]
[1770243434932,7.0469173,2130.1,2128.9,2.62310171]